fUST/lending_fUST_20260522
["ID","MTS","AMOUNT","RATE_DAILY","PERIOD"]
[422792432,1779405038000,-521.43571504,9.199e-05,2]
[422792430,1779405038000,-500.0,9.199e-05,2]
[422792440,1779405038000,-521.43571504,9.199e-05,2]
[422792415,1779405038000,-157.49822866,9.1e-05,2]
[422792489,1779405038000,-601.72030882,9.21e-05,2]
[422792469,1779405038000,-560.54339366,9.199e-05,2]
[422792490,1779405038000,-557.5788265,9.249e-05,2]
[422792523,1779405038000,-151.0,0.0001175,2]
[422792522,1779405038000,-165.0,0.00011507,3]
[422792521,1779405038000,-1815.73,0.00011507,2]
[422792526,1779405038000,-1815.73,0.00011781,2]
[422792528,1779405038000,-151.0,0.000118,2]
[422792527,1779405038000,-151.0,0.000118,2]
[422792525,1779405038000,-151.0,0.0001175,2]
[422792531,1779405038000,-150.98,0.00012,2]
[422792530,1779405038000,-161.7158655,0.00011917,2]
[422792529,1779405038000,-174.74262723,0.00011823,2]
[422792532,1779405038000,-2663.0,0.00012,10]
[422792535,1779405038000,-151.0,0.000121,2]
[422792520,1779405038000,-151.0,0.000114,2]
[422792536,1779405038000,-151.0,0.000121,2]
[422792533,1779405038000,-166.0,0.00012055,3]
[422792541,1779405038000,-150.98,0.000124,2]
[422792538,1779405038000,-541.2299572,0.00012254,2]
[422792544,1779405038000,-151.0,0.000125,2]
[422792542,1779405038000,-285.7176123,0.00012442,2]
[422792540,1779405038000,-475.93433682,0.00012359,2]
[422792539,1779405038000,-1815.73,0.00012329,2]
[422792543,1779405038000,-456.3497628,0.00012442,2]
[422792546,1779405038000,-289.2459599,0.00012572,2]
[422792545,1779405038000,-151.0,0.000125,2]
[422792547,1779405038000,-325.9226288,0.00012572,2]
[422792493,1779405038000,-766.48970852,9.803e-05,2]
[422792537,1779405038000,-150.98,0.000122,2]
[422792524,1779405038000,-151.2716887,0.0001175,2]
[422792534,1779405038000,-1815.73,0.00012055,2]
[422792518,1779405038000,-1815.73,0.00011233,2]
[422792491,1779405038000,-598.10356959,9.304e-05,2]
[422792519,1779405038000,-151.0,0.000114,2]
[422792492,1779405038000,-395.0,9.5e-05,2]
[422792495,1779405038000,-480.0,0.00010009,2]
[422792494,1779405038000,-420.0,0.00010009,2]
[422792496,1779405038000,-325.9848009,0.00010036,2]
[422792497,1779405038000,-456.643312,0.00010036,2]
[422792498,1779405038000,-412.94302753,0.00010359,2]
[422792499,1779405038000,-365.86341671,0.00010546,2]
[422792501,1779405038000,-1413.0,0.0001059,2]
[422792506,1779405038000,-151.0,0.00010858,2]
[422792503,1779405038000,-185.0,0.0001059,2]
[422792504,1779405038000,-179.24543093,0.00010666,2]
[422792500,1779405038000,-647.0,0.0001059,2]
[422792513,1779405038000,-151.0,0.00011,2]
[422792502,1779405038000,-443.0,0.0001059,2]
[422792507,1779405038000,-151.0,0.00010858,2]
[422792509,1779405038000,-184.0,0.00010959,3]
[422792510,1779405038000,-15000.0,0.00010959,2]
[422792508,1779405038000,-1815.73,0.00010959,2]
[422792511,1779405038000,-400.36357553,0.00010959,2]
[422792517,1779405038000,-3289.47797967,0.00011158,2]
[422792514,1779405038000,-151.0,0.00011,2]
[422792515,1779405038000,-151.0,0.00011,2]
[422792505,1779405038000,-1463.45366685,0.00010852,2]
[422792516,1779405038000,-151.0,0.00011,2]
[422792512,1779405038000,-151.0,0.00011,2]
[422792589,1779405039000,-1324.67189613,0.000134,2]
[422792586,1779405039000,-151.0,0.000133,2]
[422792582,1779405039000,-151.0,0.00013264,2]
[422792591,1779405039000,-165.63329,0.00013432,2]
[422792590,1779405039000,-1815.73,0.00013425,2]
[422792587,1779405039000,-151.0,0.000133,2]
[422792583,1779405039000,-151.0,0.00013264,2]
[422792585,1779405039000,-150.98,0.000133,2]
[422792584,1779405039000,-1324.67189613,0.000133,2]
[422792611,1779405039000,-316.459565,0.00013699,2]
[422792588,1779405039000,-207.61695,0.000134,2]
[422792593,1779405039000,-150.98,0.000135,2]
[422792592,1779405039000,-1324.67189613,0.000135,2]
[422792603,1779405039000,-1815.73,0.00013699,2]
[422792597,1779405039000,-188.153799,0.00013603,2]
[422792594,1779405039000,-152.0,0.00013553,30]
[422792596,1779405039000,-443.0,0.0001359,2]
[422792549,1779405039000,-1815.73,0.00012603,2]
[422792599,1779405039000,-191.439611,0.00013638,2]
[422792598,1779405039000,-188.1538,0.00013623,2]
[422792601,1779405039000,-152.0,0.00013698,7]
[422792604,1779405039000,-180.02160259,0.00013699,2]
[422792600,1779405039000,-188.62706,0.00013661,2]
[422792606,1779405039000,-342.005853,0.00013699,2]
[422792602,1779405039000,-152.0,0.00013698,7]
[422792605,1779405039000,-342.005853,0.00013699,2]
[422792581,1779405039000,-325.9692127,0.00013264,2]
[422792595,1779405039000,-573.654,0.0001359,2]
[422792580,1779405039000,-193.0034431,0.00013264,2]
[422792551,1779405039000,-150.98,0.000127,2]
[422792577,1779405039000,-621.25,0.00013166,2]
[422792550,1779405039000,-166.0,0.00012603,3]
[422792548,1779405039000,-150.98,0.000126,2]
[422792554,1779405039000,-151.0,0.000129,2]
[422792552,1779405039000,-1815.73,0.00012877,2]
[422792555,1779405039000,-151.0,0.000129,2]
[422792553,1779405039000,-150.98,0.000129,2]
[422792557,1779405039000,-707.33355507,0.00013089,2]
[422792556,1779405039000,-1324.67189613,0.00013,2]
[422792561,1779405039000,-167.0,0.00013151,3]
[422792560,1779405039000,-1815.73,0.00013151,2]
[422792564,1779405039000,-500.0,0.00013166,2]
[422792562,1779405039000,-500.0,0.00013166,2]
[422792558,1779405039000,-1324.67189613,0.000131,2]
[422792579,1779405039000,-269.8010833,0.00013264,2]
[422792559,1779405039000,-150.98,0.000131,2]
[422792567,1779405039000,-500.0,0.00013166,2]
[422792571,1779405039000,-500.0,0.00013166,2]
[422792565,1779405039000,-500.0,0.00013166,2]
[422792566,1779405039000,-500.0,0.00013166,2]
[422792570,1779405039000,-500.0,0.00013166,2]
[422792568,1779405039000,-500.0,0.00013166,2]
[422792569,1779405039000,-500.0,0.00013166,2]
[422792575,1779405039000,-500.0,0.00013166,2]
[422792573,1779405039000,-500.0,0.00013166,2]
[422792574,1779405039000,-500.0,0.00013166,2]
[422792578,1779405039000,-500.0,0.00013166,2]
[422792572,1779405039000,-500.0,0.00013166,2]
[422792576,1779405039000,-500.0,0.00013166,2]
[422792563,1779405039000,-500.0,0.00013166,2]
[422792609,1779405039000,-316.459565,0.00013699,2]
[422792624,1779405039000,-342.005853,0.00013699,2]
[422792610,1779405039000,-316.459565,0.00013699,2]
[422792644,1779405039000,-164.08,0.00013815,2]
[422792646,1779405039000,-800.0,0.00013881,2]
[422792642,1779405039000,-164.11,0.00013815,2]
[422792653,1779405039000,-800.0,0.00013916,2]
[422792650,1779405039000,-800.0,0.00013893,2]
[422792651,1779405039000,-150.98,0.000139,2]
[422792654,1779405039000,-800.0,0.00013921,2]
[422792648,1779405039000,-1145.05328937,0.00013883,2]
[422792649,1779405039000,-388.93093097,0.00013886,2]
[422792652,1779405039000,-800.0,0.00013901,2]
[422792661,1779405039000,-800.0,0.00013961,2]
[422792659,1779405039000,-800.0,0.00013953,2]
[422792655,1779405039000,-800.0,0.00013927,2]
[422792657,1779405039000,-800.0,0.00013936,2]
[422792658,1779405039000,-800.0,0.00013936,2]
[422792656,1779405039000,-800.0,0.00013935,2]
[422792660,1779405039000,-800.0,0.00013958,2]
[422792667,1779405039000,-800.0,0.00013985,2]
[422792666,1779405039000,-877.23109976,0.00013984,2]
[422792669,1779405039000,-800.0,0.00013998,2]
[422792663,1779405039000,-1815.73,0.00013973,2]
[422792662,1779405039000,-800.0,0.00013972,2]
[422792664,1779405039000,-800.0,0.00013979,2]
[422792668,1779405039000,-800.0,0.00013997,2]
[422792671,1779405039000,-151.0,0.00014,2]
[422792670,1779405039000,-151.0,0.00014,2]
[422792608,1779405039000,-342.005853,0.00013699,2]
[422792645,1779405039000,-800.0,0.00013877,2]
[422792643,1779405039000,-164.08,0.00013815,2]
[422792638,1779405039000,-316.459565,0.00013813,2]
[422792641,1779405039000,-164.08,0.00013813,2]
[422792647,1779405039000,-800.0,0.00013882,2]
[422792612,1779405039000,-316.459565,0.00013699,2]
[422792613,1779405039000,-3174.797514,0.00013699,2]
[422792614,1779405039000,-1000.0,0.00013699,2]
[422792615,1779405039000,-732.268371,0.00013699,2]
[422792618,1779405039000,-350.8924399,0.00013699,2]
[422792619,1779405039000,-526.33865985,0.00013699,2]
[422792616,1779405039000,-1040.07,0.00013699,2]
[422792617,1779405039000,-175.44621995,0.00013699,2]
[422792620,1779405039000,-701.7848798,0.00013699,2]
[422792621,1779405039000,-167.0,0.00013699,3]
[422792623,1779405039000,-1000.0,0.00013699,2]
[422792622,1779405039000,-2000.0,0.00013699,7]
[422792626,1779405039000,-342.005853,0.00013699,2]
[422792607,1779405039000,-342.005853,0.00013699,2]
[422792625,1779405039000,-342.005853,0.00013699,2]
[422792640,1779405039000,-164.08,0.00013813,2]
[422792636,1779405039000,-316.459565,0.00013813,2]
[422792635,1779405039000,-316.459565,0.00013813,2]
[422792628,1779405039000,-150.98,0.000137,2]
[422792639,1779405039000,-164.08,0.00013813,2]
[422792634,1779405039000,-164.08,0.00013811,2]
[422792637,1779405039000,-316.459565,0.00013813,2]
[422792630,1779405039000,-151.0,0.000137,2]
[422792632,1779405039000,-152.0,0.00013743,7]
[422792631,1779405039000,-152.0,0.00013715,7]
[422792629,1779405039000,-151.0,0.000137,2]
[422792627,1779405039000,-342.005853,0.00013699,2]
[422792633,1779405039000,-164.08,0.00013811,2]
[422792721,1779405040000,-1052.67731971,0.00014413,2]
[422792718,1779405040000,-150.98,0.000144,2]
[422792719,1779405040000,-151.0,0.000144,2]
[422792715,1779405040000,-2000.0,0.00014329,7]
[422792714,1779405040000,-158.755313,0.00014316,2]
[422792709,1779405040000,-168.0,0.00014247,3]
[422792713,1779405040000,-150.66,0.000143,2]
[422792717,1779405040000,-150.66,0.000144,2]
[422792708,1779405040000,-342.005853,0.00014246,2]
[422792705,1779405040000,-342.005853,0.00014246,2]
[422792712,1779405040000,-150.66,0.000143,2]
[422792724,1779405040000,-150.66,0.000145,2]
[422792716,1779405040000,-538.9256461,0.00014359,2]
[422792722,1779405040000,-170.0,0.00014418,2]
[422792728,1779405040000,-316.459565,0.000145,2]
[422792723,1779405040000,-200.0,0.00014482,2]
[422792727,1779405040000,-151.6,0.000145,2]
[422792730,1779405040000,-316.459565,0.000145,2]
[422792726,1779405040000,-151.0,0.000145,2]
[422792725,1779405040000,-150.66,0.000145,2]
[422792729,1779405040000,-316.459565,0.000145,2]
[422792731,1779405040000,-316.459565,0.000145,2]
[422792737,1779405040000,-503.6746,0.000146,2]
[422792732,1779405040000,-200.0,0.0001451,2]
[422792736,1779405040000,-150.66,0.000146,2]
[422792733,1779405040000,-1389.74757063,0.0001452,2]
[422792735,1779405040000,-530.14169145,0.00014593,2]
[422792707,1779405040000,-342.005853,0.00014246,2]
[422792720,1779405040000,-151.0,0.000144,2]
[422792711,1779405040000,-1815.73,0.00014247,2]
[422792692,1779405040000,-150.98,0.000141,2]
[422792699,1779405040000,-800.0,0.00014134,2]
[422792674,1779405040000,-800.0,0.00014012,2]
[422792672,1779405040000,-800.0,0.00014003,2]
[422792675,1779405040000,-800.0,0.00014025,2]
[422792673,1779405040000,-800.0,0.00014004,2]
[422792676,1779405040000,-800.0,0.00014028,2]
[422792682,1779405040000,-800.0,0.00014044,2]
[422792679,1779405040000,-800.0,0.00014038,2]
[422792678,1779405040000,-800.0,0.00014028,2]
[422792677,1779405040000,-800.0,0.00014028,2]
[422792681,1779405040000,-800.0,0.00014043,2]
[422792683,1779405040000,-800.0,0.0001405,2]
[422792687,1779405040000,-800.0,0.00014083,2]
[422792685,1779405040000,-800.0,0.00014065,2]
[422792706,1779405040000,-342.005853,0.00014246,2]
[422792691,1779405040000,-800.0,0.00014096,2]
[422792734,1779405040000,-1815.73,0.00014521,2]
[422792686,1779405040000,-800.0,0.00014071,2]
[422792684,1779405040000,-800.0,0.00014054,2]
[422792695,1779405040000,-800.0,0.00014106,2]
[422792693,1779405040000,-800.0,0.000141,2]
[422792694,1779405040000,-800.0,0.00014104,2]
[422792697,1779405040000,-800.0,0.00014117,2]
[422792698,1779405040000,-800.0,0.00014129,2]
[422792696,1779405040000,-800.0,0.00014109,2]
[422792703,1779405040000,-150.98,0.000142,2]
[422792704,1779405040000,-1389.74,0.00014246,2]
[422792700,1779405040000,-800.0,0.00014152,2]
[422792702,1779405040000,-151.51,0.000142,2]
[422792689,1779405040000,-800.0,0.00014095,2]
[422792738,1779405040000,-150.98,0.000146,2]
[422792701,1779405040000,-150.66,0.000142,2]
[422792743,1779405040000,-151.51,0.000147,2]
[422792771,1779405040000,-1220.405,0.000149,2]
[422792801,1779405040000,-603210.01229581,0.00015,5]
[422792773,1779405040000,-1307.488,0.000149,2]
[422792776,1779405040000,-449.932,0.000149,2]
[422792777,1779405040000,-151.6,0.000149,2]
[422792780,1779405040000,-288.96531648,0.000149,2]
[422792781,1779405040000,-1647.42,0.000149,2]
[422792779,1779405040000,-386.96,0.000149,2]
[422792778,1779405040000,-602.71873497,0.000149,2]
[422792783,1779405040000,-583.47368458,0.000149,2]
[422792784,1779405040000,-583.47368458,0.000149,2]
[422792782,1779405040000,-1202.9178,0.000149,2]
[422792788,1779405040000,-391.1483854,0.00014919,2]
[422792770,1779405040000,-1913.9051,0.000149,2]
[422792787,1779405040000,-151.0,0.00014919,2]
[422792790,1779405040000,-325.9848009,0.00014919,2]
[422792793,1779405040000,-2000.0,0.00014959,7]
[422792789,1779405040000,-456.643312,0.00014919,2]
[422792792,1779405040000,-6882.98944493,0.00014959,2]
[422792791,1779405040000,-530.14169145,0.00014924,2]
[422792794,1779405040000,-530.14169145,0.00014962,2]
[422792798,1779405040000,-200.0,0.00015,7]
[422792800,1779405040000,-150.66,0.00015,2]
[422792796,1779405040000,-328839.64622794,0.00015,2]
[422792797,1779405040000,-250.0,0.00015,7]
[422792795,1779405040000,-530.14169145,0.00014965,2]
[422792799,1779405040000,-170.002275,0.00015,2]
[422792742,1779405040000,-150.66,0.000147,2]
[422792786,1779405040000,-530.14169145,0.00014917,2]
[422792774,1779405040000,-1307.488,0.000149,2]
[422792785,1779405040000,-583.47368458,0.000149,2]
[422792775,1779405040000,-1307.48,0.000149,2]
[422792741,1779405040000,-150.66,0.000147,2]
[422792749,1779405040000,-150.66,0.000148,2]
[422792747,1779405040000,-1815.73,0.00014795,2]
[422792744,1779405040000,-530.14169145,0.00014726,2]
[422792746,1779405040000,-169.0,0.00014795,3]
[422792745,1779405040000,-530.14169145,0.00014775,2]
[422792748,1779405040000,-160.0,0.00014799,2]
[422792750,1779405040000,-400.0,0.000148,4]
[422792751,1779405040000,-150.98,0.000148,2]
[422792753,1779405040000,-342.005853,0.000148,2]
[422792754,1779405040000,-342.005853,0.000148,2]
[422792752,1779405040000,-349556.49840376,0.000148,2]
[422792755,1779405040000,-342.005853,0.000148,2]
[422792739,1779405040000,-530.14169145,0.00014626,2]
[422792756,1779405040000,-342.005853,0.000148,2]
[422792758,1779405040000,-316.459565,0.000148,2]
[422792759,1779405040000,-316.459565,0.000148,2]
[422792757,1779405040000,-316.459565,0.000148,2]
[422792761,1779405040000,-13334.06636655,0.0001485,2]
[422792762,1779405040000,-530.14169145,0.00014862,2]
[422792760,1779405040000,-316.459565,0.000148,2]
[422792764,1779405040000,-530.14169145,0.00014877,2]
[422792763,1779405040000,-200.0,0.00014865,2]
[422792765,1779405040000,-530.14169145,0.00014891,2]
[422792767,1779405040000,-1735.5,0.000149,2]
[422792768,1779405040000,-150.66,0.000149,2]
[422792766,1779405040000,-191.12854574,0.00014899,2]
[422792769,1779405040000,-150.66,0.000149,2]
[422792740,1779405040000,-732.268371,0.00014658,2]
[422792772,1779405040000,-1220.4,0.000149,2]
[422792806,1779405043000,-2659.03225688,0.00014058,2]
[422792805,1779405043000,-763.36885958,0.00013883,2]
[422792813,1779405046000,-6334.95487642,0.00015,5]
[422792811,1779405046000,-2340.96774312,0.00014058,2]
[422792812,1779405046000,-508.91257305,0.000147,2]
[422792814,1779405046000,-42999.0708418,0.00015,5]
[422792819,1779405221000,10000.0,0.00017808,120]
[422792820,1779405252000,631.0,0.00017808,120]
[422792877,1779406231000,-637.92171028,8.522e-05,2]
[422792879,1779406231000,-2665.85544935,8.522e-05,2]
[422793049,1779406238000,-5000.0,9.118e-05,2]
[422793051,1779406238000,-5000.0,9.118e-05,2]
[422793055,1779406238000,-5000.0,9.118e-05,2]
[422793064,1779406238000,-521.43571504,9.199e-05,2]
[422793057,1779406238000,-537.6845,9.195e-05,2]
[422793058,1779406238000,-521.43571504,9.199e-05,2]
[422793047,1779406238000,-5000.0,9.118e-05,2]
[422793053,1779406238000,-5000.0,9.118e-05,2]
[422793046,1779406238000,-245.136,9.1e-05,2]
[422793033,1779406238000,-333.99800842,8.903e-05,3]
[422793062,1779406238000,-521.43571504,9.199e-05,2]
[422793034,1779406238000,-300.0,9.099e-05,2]
[422793029,1779406238000,-314.97038311,8.565e-05,2]
[422793031,1779406238000,-200.0,8.608e-05,2]
[422793042,1779406238000,-1218.47645008,9.1e-05,2]
[422793027,1779406238000,-1696.22284037,8.522e-05,2]
[422793040,1779406238000,-1097.56483387,9.1e-05,2]
[422793036,1779406238000,-1200.0,9.099e-05,2]
[422793038,1779406238000,-526.85564182,9.1e-05,2]
[422793044,1779406238000,-1282.33079225,9.1e-05,2]
[422793060,1779406238000,-521.43571504,9.199e-05,2]
[422793088,1779406238000,-521.43571504,9.199e-05,2]
[422793071,1779406238000,-521.43571504,9.199e-05,2]
[422793066,1779406238000,-521.43571504,9.199e-05,2]
[422793113,1779406238000,-146353.10656899,9.2e-05,2]
[422793108,1779406238000,-540.39701376,9.199e-05,2]
[422793111,1779406238000,-540.39701376,9.199e-05,2]
[422793109,1779406238000,-540.39701376,9.199e-05,2]
[422793106,1779406238000,-540.39701376,9.199e-05,2]
[422793102,1779406238000,-540.39701376,9.199e-05,2]
[422793104,1779406238000,-540.39701376,9.199e-05,2]
[422793100,1779406238000,-540.39701376,9.199e-05,2]
[422793082,1779406238000,-521.43571504,9.199e-05,2]
[422793096,1779406238000,-540.39701376,9.199e-05,2]
[422793077,1779406238000,-521.43571504,9.199e-05,2]
[422793075,1779406238000,-521.43571504,9.199e-05,2]
[422793080,1779406238000,-521.43571504,9.199e-05,2]
[422793084,1779406238000,-521.43571504,9.199e-05,2]
[422793078,1779406238000,-521.43571504,9.199e-05,2]
[422793085,1779406238000,-521.43571504,9.199e-05,2]
[422793073,1779406238000,-521.43571504,9.199e-05,2]
[422793068,1779406238000,-521.43571504,9.199e-05,2]
[422793069,1779406238000,-521.43571504,9.199e-05,2]
[422793092,1779406238000,-540.39701376,9.199e-05,2]
[422793225,1779406243000,-15218.1178605,9.2e-05,2]
[422793243,1779406247000,-500.0,9.196e-05,2]
[422793246,1779406247000,-500.0,9.196e-05,2]
[422793247,1779406247000,-500.0,9.196e-05,2]
[422793245,1779406247000,-310.79520762,9.196e-05,2]
[422793248,1779406247000,-1643.05479238,9.2e-05,2]
[422793244,1779406247000,-500.0,9.196e-05,2]
[422793294,1779407432000,-2164.56955448,8.531e-05,2]
[422793394,1779407438000,-500.0,9.115e-05,2]
[422793396,1779407438000,-500.0,9.115e-05,2]
[422793397,1779407438000,-631.36,9.115e-05,2]
[422793400,1779407438000,-500.0,9.115e-05,2]
[422793399,1779407438000,-500.0,9.115e-05,2]
[422793402,1779407438000,-500.0,9.115e-05,2]
[422793401,1779407438000,-500.0,9.115e-05,2]
[422793403,1779407438000,-500.16306456,9.115e-05,2]
[422793404,1779407438000,-500.0,9.115e-05,2]
[422793406,1779407438000,-500.0,9.115e-05,2]
[422793408,1779407438000,-500.0,9.115e-05,2]
[422793409,1779407438000,-500.0,9.115e-05,2]
[422793405,1779407438000,-507.8059656,9.115e-05,2]
[422793407,1779407438000,-500.0,9.115e-05,2]
[422793410,1779407438000,-500.46254206,9.115e-05,2]
[422793395,1779407438000,-500.0,9.115e-05,2]
[422793398,1779407438000,-507.80325507,9.115e-05,2]
[422793393,1779407438000,-500.0,9.115e-05,2]
[422793377,1779407438000,-300.0,9.114e-05,2]
[422793391,1779407438000,-500.0,9.115e-05,2]
[422793412,1779407438000,-500.0,9.115e-05,2]
[422793375,1779407438000,-318.84659533,8.793e-05,2]
[422793376,1779407438000,-500.0,9.114e-05,2]
[422793374,1779407438000,-2835.43044552,8.531e-05,2]
[422793378,1779407438000,-1200.0,9.114e-05,2]
[422793379,1779407438000,-500.0,9.115e-05,2]
[422793381,1779407438000,-500.0,9.115e-05,2]
[422793384,1779407438000,-500.0,9.115e-05,2]
[422793380,1779407438000,-500.0,9.115e-05,2]
[422793382,1779407438000,-500.0,9.115e-05,2]
[422793383,1779407438000,-500.0,9.115e-05,2]
[422793385,1779407438000,-500.0,9.115e-05,2]
[422793387,1779407438000,-504.92,9.115e-05,2]
[422793388,1779407438000,-500.0,9.115e-05,2]
[422793389,1779407438000,-500.0,9.115e-05,2]
[422793386,1779407438000,-500.0,9.115e-05,2]
[422793390,1779407438000,-500.0,9.115e-05,2]
[422793392,1779407438000,-500.0,9.115e-05,2]
[422793415,1779407438000,-514.18121957,9.115e-05,2]
[422793440,1779407438000,-500.0,9.115e-05,2]
[422793414,1779407438000,-500.0,9.115e-05,2]
[422793437,1779407438000,-500.0,9.115e-05,2]
[422793439,1779407438000,-500.42662827,9.115e-05,2]
[422793441,1779407438000,-500.0,9.115e-05,2]
[422793438,1779407438000,-500.32536905,9.115e-05,2]
[422793449,1779407438000,-500.22682784,9.115e-05,2]
[422793436,1779407438000,-500.57829887,9.115e-05,2]
[422793444,1779407438000,-500.0,9.115e-05,2]
[422793435,1779407438000,-500.0,9.115e-05,2]
[422793442,1779407438000,-500.0,9.115e-05,2]
[422793443,1779407438000,-489.68848654,9.115e-05,2]
[422793446,1779407438000,-257.54135548,9.115e-05,2]
[422793447,1779407438000,-500.20670353,9.115e-05,2]
[422793448,1779407438000,-500.24962742,9.115e-05,2]
[422793452,1779407438000,-500.0,9.115e-05,2]
[422793450,1779407438000,-495.598348,9.115e-05,2]
[422793413,1779407438000,-500.0,9.115e-05,2]
[422793445,1779407438000,-500.0,9.115e-05,2]
[422793434,1779407438000,-495.13695176,9.115e-05,2]
[422793451,1779407438000,-517.97879758,9.115e-05,2]
[422793433,1779407438000,-500.55953093,9.115e-05,2]
[422793432,1779407438000,-518.78200986,9.115e-05,2]
[422793411,1779407438000,-500.0,9.115e-05,2]
[422793417,1779407438000,-500.45222975,9.115e-05,2]
[422793418,1779407438000,-500.0,9.115e-05,2]
[422793421,1779407438000,-500.60995306,9.115e-05,2]
[422793422,1779407438000,-500.25562804,9.115e-05,2]
[422793423,1779407438000,-500.0,9.115e-05,2]
[422793419,1779407438000,-500.0,9.115e-05,2]
[422793416,1779407438000,-500.0,9.115e-05,2]
[422793424,1779407438000,-500.0,9.115e-05,2]
[422793426,1779407438000,-500.18780461,9.115e-05,2]
[422793427,1779407438000,-508.63,9.115e-05,2]
[422793425,1779407438000,-501.26607582,9.115e-05,2]
[422793428,1779407438000,-500.0,9.115e-05,2]
[422793431,1779407438000,-500.0,9.115e-05,2]
[422793429,1779407438000,-500.6584033,9.115e-05,2]
[422793420,1779407438000,-500.42258685,9.115e-05,2]
[422793430,1779407438000,-500.0,9.115e-05,2]
[422793499,1779407439000,-500.0,9.116e-05,2]
[422793497,1779407439000,-500.0,9.116e-05,2]
[422793496,1779407439000,-500.0,9.115e-05,2]
[422793495,1779407439000,-500.0,9.115e-05,2]
[422793494,1779407439000,-500.0,9.115e-05,2]
[422793491,1779407439000,-500.0,9.115e-05,2]
[422793492,1779407439000,-500.0,9.115e-05,2]
[422793493,1779407439000,-500.0,9.115e-05,2]
[422793488,1779407439000,-500.0,9.115e-05,2]
[422793489,1779407439000,-500.0,9.115e-05,2]
[422793500,1779407439000,-500.0,9.116e-05,2]
[422793487,1779407439000,-500.0,9.115e-05,2]
[422793490,1779407439000,-500.0,9.115e-05,2]
[422793498,1779407439000,-500.0,9.116e-05,2]
[422793508,1779407439000,-500.0,9.116e-05,2]
[422793502,1779407439000,-500.0,9.116e-05,2]
[422793504,1779407439000,-500.0,9.116e-05,2]
[422793503,1779407439000,-500.0,9.116e-05,2]
[422793505,1779407439000,-500.0,9.116e-05,2]
[422793506,1779407439000,-500.0,9.116e-05,2]
[422793507,1779407439000,-500.0,9.116e-05,2]
[422793509,1779407439000,-500.0,9.116e-05,2]
[422793510,1779407439000,-500.92572126,9.116e-05,2]
[422793511,1779407439000,-500.0,9.116e-05,2]
[422793512,1779407439000,-500.0,9.116e-05,2]
[422793513,1779407439000,-500.0,9.116e-05,2]
[422793514,1779407439000,-500.26628579,9.116e-05,2]
[422793517,1779407439000,-500.31096216,9.116e-05,2]
[422793484,1779407439000,-500.0,9.115e-05,2]
[422793501,1779407439000,-500.0,9.116e-05,2]
[422793482,1779407439000,-637.72,9.115e-05,2]
[422793462,1779407439000,-500.0,9.115e-05,2]
[422793483,1779407439000,-500.0,9.115e-05,2]
[422793454,1779407439000,-562.78637355,9.115e-05,2]
[422793453,1779407439000,-500.0,9.115e-05,2]
[422793455,1779407439000,-559.38,9.115e-05,2]
[422793458,1779407439000,-500.0,9.115e-05,2]
[422793457,1779407439000,-648.74,9.115e-05,2]
[422793459,1779407439000,-500.0,9.115e-05,2]
[422793460,1779407439000,-535.46741483,9.115e-05,2]
[422793456,1779407439000,-500.0,9.115e-05,2]
[422793461,1779407439000,-500.0,9.115e-05,2]
[422793464,1779407439000,-500.0,9.115e-05,2]
[422793465,1779407439000,-500.0,9.115e-05,2]
[422793463,1779407439000,-500.0,9.115e-05,2]
[422793466,1779407439000,-500.0,9.115e-05,2]